Cogmind - Beta 13 @@@ ROGUE MODE // 2024.04.19 @ 16:02:00 Player: Skysub Result: Destroyed by G-47 Trooper with Particle Gun Performance ------------- Evolutions (2) 1000 Regions Visited (5) 1000 Robots Destroyed (30) 150 Value Destroyed (844) 844 Prototype IDs (12) 240 Alien Tech Used (0) 0 Bonus (151) 151 TOTAL SCORE: 3385 Bonus ------- High Alert Combat Kills 11 Follower Combat Kills 140 Cogmind --------- Core Integrity 0/550 Matter 300/300 Energy 100/100 System Corruption 5% Temperature Cool (18) Movement Core (50) Location -8/Storage Parts ------- > --- POWER (1) -------- (None) > --- PROPULSION (3) --- (None) > --- UTILITY (5) ------ Visual Processing Unit Improved Signal Interpreter > --- WEAPON (2) ------- (None) > --- INVENTORY (5) ---- Flight Unit Flight Unit Flight Unit Advanced Weight Redist. System Advanced Targeting Computer Peak State ------------ > --- POWER ------------ Subdweller Power Source Light Deuterium Engine > --- PROPULSION ------- Wheel Subdweller Monowheel Subdweller Monowheel > --- UTILITY ---------- Small Storage Unit Subdweller Optics Experimental Sensor Array Signal Interpreter Hardened Light Armor Plating Rainbow Chip > --- WEAPON ----------- Battle Rifle Makeshift Shrapnel Gun Grenade Launcher > --- INVENTORY -------- Light Ion Engine Flight Unit Flight Unit Flight Unit Flight Unit Weight Redist. System Advanced Weight Redist. System Grenade Launcher [Rating: 46] Favorites ----------- Power Light Ion Engine Engine Light Ion Engine Power Core Light Nuclear Core Propulsion Aluminum Leg Treads Spiked Treads Leg Aluminum Leg Wheel Subdweller Monowheel Utility Small Storage Unit Device Experimental Sensor Array Storage Small Storage Unit Processor Rainbow Chip Protection Hardened Light Armor Plating Weapon Grenade Launcher Energy Gun Riot Gun Ballistic Gun Battle Rifle Launcher Grenade Launcher Slashing Weapon Katana Build | -11 -10 -10 -10 -8 -8 ------- Run | Yrd Mat Min Sub Mat Sto Slots Evolved 4 | . . . . 4 . Power . | . . . . . . Propulsion 1 | . . . . 1 . Utility 3 | . . . . 3 . Weapon . | . . . . . . Parts Attached 48 | 6 5 7 15 10 5 Power 5 | 1 1 1 1 1 . Engine 4 | 1 . 1 1 1 . Core 1 | . 1 . . . . Reactor . | . . . . . . Propulsion 16 | 2 2 2 5 4 1 Treads 1 | . . . 1 . . Leg 8 | 2 2 2 1 . 1 Wheel 7 | . . . 3 4 . Hover . | . . . . . . Flight . | . . . . . . Utility 11 | 1 2 1 2 3 2 Device 3 | . . 1 1 1 . Storage 1 | 1 . . . . . Processor 5 | . 1 . 1 1 2 Hackware . | . . . . . . Protection 2 | . 1 . . 1 . Artifact . | . . . . . . Weapon 16 | 2 . 3 7 2 2 Energy Gun 2 | 1 . . 1 . . Energy Cannon . | . . . . . . Ballistic Gun 8 | 1 . 1 5 1 . Ballistic Cannon . | . . . . . . Launcher 4 | . . 2 1 1 . Special Weapon . | . . . . . . Impact Weapon . | . . . . . . Slashing Weapon 2 | . . . . . 2 Piercing Weapon . | . . . . . . Special Melee Weapon . | . . . . . . Unidentified Prototypes 2 | . . 1 . . 1 Parts Lost 21 | . 2 1 1 3 14 Power 4 | . 1 1 . . 2 Propulsion 5 | . . . 1 . 4 Utility 5 | . 1 . . . 4 Weapon 7 | . . . . 3 4 Highest Loss Streak 14 | . 1 1 1 3 14 To Critical Strikes . | . . . . . . Average Slot Usage (%) 89 | . 95 87 90 92 70 Engine 10 | . 5 . 13 14 8 Core 1 | . 8 1 . . . Treads 4 | . . . 7 . . Leg 14 | . 28 28 10 . . Wheel 3 | . . . 3 17 14 Device 8 | . . 10 9 12 4 Storage 10 | . 14 14 9 7 4 Processor 8 | . 5 3 8 14 20 Protection 1 | . 4 . . 6 4 Energy Gun 3 | . 14 1 3 . . Ballistic Gun 13 | . 14 14 14 11 4 Launcher 8 | . . 12 9 7 3 Naked Turns . | . . . . . . Heaviest Build 30 | 13 16 14 22 30 25 Greatest Support 50 | 20 20 20 40 50 30 Greatest Overweight (x) 3 | 1 1 . 1 2 3 Average Overweight (x) . | . . . . . . Largest Inventory Capacity 8 | 8 8 8 8 8 8 Average Capacity 7 | 7 8 8 8 8 7 Most Carried 8 | . 7 8 8 8 7 Average Carried 7 | . 5 7 7 7 6 Final Capacity 8 | 8 8 8 8 8 5 Final Carried 8 | . 7 8 8 7 5 Class Distribution -------------------- 39% | Mutant 31% | Derelict-Skirmisher 24% | Skirmisher 4% | Scavenger-Mutant Dominant Class ---------------- Mutant | -10/Materials Mutant | -10/Mines Derelict-Skirmisher | -10/Subcaves Derelict-Skirmisher | -8/Materials Mutant | -8/Storage Resources | -11 -10 -10 -10 -8 -8 ----------- Run | Yrd Mat Min Sub Mat Sto Matter Collected 1101 | 222 93 160 325 132 169 Remotely . | . . . . . . Salvage Created 853 | . 279 151 177 194 52 Parts 56 | . 20 11 10 11 4 Haulers Intercepted 1 | . 1 . . . . Recyclers Shooed . | . . . . . . Parts Field Recycled . | . . . . . . Retrieved Matter . | . . . . . . Parts Self-Destructed . | . . . . . . Prevented . | . . . . . . Kills | -11 -10 -10 -10 -8 -8 ------- Run | Yrd Mat Min Sub Mat Sto Combat Hostiles Destroyed 27 | . 8 5 4 9 1 Melee 1 | . . . . . 1 Guns 14 | . 8 . 4 2 . AOE 12 | . . 5 . 7 . Classes Destroyed 8 | . 3 1 1 2 1 Tunneler 1 | . . . . 1 . Hauler 1 | . 1 . . . . Recycler 1 | . . 1 . . . Swarmer 10 | . 3 3 . 4 . Grunt 9 | . 5 2 . 2 . Brawler 1 | . . . . . 1 Sentry 3 | . . . . 3 . Subdweller 4 | . . . 4 . . Best Kill Streak 6 | . 3 3 1 6 1 Combat Bots Only 6 | . 3 3 1 6 1 Max Kills in Single Turn 2 | . 1 2 1 2 1 Gunslinging . | . . . . . . Exploded 2 | . . 2 . 2 . Melee 1 | . . . . . 1 Uniques/NPCs Destroyed . | . . . . . . Combat | -11 -10 -10 -10 -8 -8 -------- Run | Yrd Mat Min Sub Mat Sto Hostile Shots Fired 196 | . 52 12 11 32 89 Missed 51 | . 13 5 3 4 26 Damage Taken 2416 | . 413 136 316 383 1168 Core 746 | . 75 78 28 12 553 Absorbed by Shields . | . . . . . . Core Remaining (%) 63 | 100 . . 27 . . Volleys Fired 142 | . 41 10 60 19 12 Largest 3 | . 2 2 3 3 2 Hottest 105 | . 70 50 105 79 50 Shots Fired 206 | . 70 16 72 33 15 Gun 182 | . 70 10 67 23 12 Cannon . | . . . . . . Launcher 24 | . . 6 5 10 3 Special . | . . . . . . Kinetic 139 | . 36 10 58 23 12 Thermal 34 | . 34 . . . . Explosive 24 | . . 6 5 10 3 Electromagnetic 9 | . . . 9 . . Robot Hit Streak 10 | . 7 4 7 9 10 Robot Miss Streak 4 | . 3 1 2 4 1 Penetration Max . | . . . . . . Secondary Targets . | . . . . . . Shots Hit Robots 110 | . 44 11 17 24 14 Core Hits 64 | . 18 8 8 21 9 Critical Kills . | . . . . . . Critical Parts Destroyed 1 | . 1 . . . . Critical Strikes 2 | . 2 . . . . Burn 1 | . 1 . . . . Destroy 1 | . 1 . . . . Melee Attacks 4 | . . . . . 4 Impact . | . . . . . . Slashing 4 | . . . . . 4 Piercing . | . . . . . . Sneak Attacks . | . . . . . . Combat Hostiles . | . . . . . . Follow-up Attacks . | . . . . . . Damage Inflicted 2482 | . 455 376 397 917 337 Guns 1032 | . 455 46 215 242 74 Cannons . | . . . . . . Explosions 1367 | . . 324 182 675 186 Melee 53 | . . . . . 53 Ramming 30 | . . 6 . . 24 Kinetic 727 | . 218 46 147 242 74 Thermal 442 | . 237 . 64 141 . Explosive 1162 | . . 324 118 534 186 Electromagnetic 68 | . . . 68 . . Impact . | . . . . . . Slashing 53 | . . . . . 53 Piercing . | . . . . . . Highest Corruption 5 | . . . . . 5 Average Corruption 5 | . . . . . 5 Corruption Purged . | . . . . . . Corruption Blocked . | . . . . . . Effects 1 | . . . . . 1 Data Loss (major) 1 | . . . . . 1 Overload Shots . | . . . . . . Overflow Damage 73 | . . 34 . 39 . Projectiles . | . . . . . . Explosions 73 | . . 34 . 39 . Melee . | . . . . . . Knockbacks . | . . . . . . Impact . | . . . . . . Kinetic . | . . . . . . Secondary . | . . . . . . Self-Inflicted Damage 100 | . . 46 31 12 11 Shots 6 | . . 3 2 1 . Rammed 5 | . . . . . 5 Targets Rammed 10 | . 1 4 . . 5 Kicked 5 | . 1 4 . . . Crushed . | . . . . . . Highest Temperature 337 | . 337 9 6 87 109 Average Temperature 96 | . 140 7 3 36 51 Received Heat Transfer 963 | . 210 42 18 117 576 Effects 6 | . 6 . . . . Shutdowns 1 | . 1 . . . . Energy Bleed 2 | . 2 . . . . Interference 3 | . 3 . . . . Siege Activations . | . . . . . . Robots Corrupted . | . . . . . . Combat Hostiles . | . . . . . . Parts Fried . | . . . . . . Impact Corruptions . | . . . . . . Robots Melted . | . . . . . . Combat Hostiles . | . . . . . . Parts Melted 5 | . 5 . . . . Heat Transferred 927 | . 777 . 50 100 . Parts Sabotaged . | . . . . . . Parts Stolen . | . . . . . . Parts Stripped . | . . . . . . Power Chain Reactions 1 | . . . 1 . . Alert | -11 -10 -10 -10 -8 -8 ------- Run | Yrd Mat Min Sub Mat Sto Peak Influence 429 | . 237 86 . 429 361 Initial 180 | . . 19 . . 180 Average 104 | . 131 45 . 164 230 Maximum Alert Level 2 | . 1 . . 2 1 Low Security (%) 77 | 100 60 100 . 67 35 Level 1 21 | . 39 . . 25 64 Level 2 1 | . . . . 6 . Level 3 . | . . . . . . Level 4 . | . . . . . . Level 5 . | . . . . . . High Security . | . . . . . . Max Security . | . . . . . . Squads Dispatched 9 | . 3 . . 1 5 Investigation 3 | . 2 . . . 1 Extermination . | . . . . . . Reinforcement 4 | . 1 . . 1 2 Assault 2 | . . . . . 2 Garrison . | . . . . . . Intercept . | . . . . . . Searches Triggered . | . . . . . . Construction Impeded 1 | . . . . 1 . Haulers Reinforced . | . . . . . . Active Scanning Responses . | . . . . . . Cargo Convoy Interrupts . | . . . . . . Stealth | -11 -10 -10 -10 -8 -8 --------- Run | Yrd Mat Min Sub Mat Sto Distress Signals 4 | . 3 . . . 1 Communications Jammed . | . . . . . . Distress Signals . | . . . . . . Times Spotted 70 | . 15 5 4 17 29 Peak Tracking Total 19 | . 4 3 1 6 19 Tactical Retreats 1 | . 1 . . . . Traps | -11 -10 -10 -10 -8 -8 ------- Run | Yrd Mat Min Sub Mat Sto Traps Triggered 4 | . 1 . 3 . . Indirectly . | . . . . . . Trap Hack Attempts . | . . . . . . Triggered . | . . . . . . Disarmed . | . . . . . . Reprogrammed . | . . . . . . Reused . | . . . . . . Traps Extracted . | . . . . . . Installed . | . . . . . . Triggered . | . . . . . . Machines | -11 -10 -10 -10 -8 -8 ---------- Run | Yrd Mat Min Sub Mat Sto Machines Disabled 5 | . . . 1 2 2 Max in Single Turn 2 | . . . 1 2 1 Machines Repaired . | . . . . . . Machines Dismantled . | . . . . . . Machines Sabotaged . | . . . . . . Overloaded Fab Kills . | . . . . . . Hacking | -11 -10 -10 -10 -8 -8 --------- Run | Yrd Mat Min Sub Mat Sto Machines Accessed 10 | . 3 1 1 3 2 Terminals 8 | . 2 1 . 3 2 Fabricators . | . . . . . . Repair Stations . | . . . . . . Recycling Units 1 | . 1 . . . . Scanalyzers . | . . . . . . Garrison Access . | . . . . . . Total Hacks 26 | . 11 2 1 8 4 Successful 8 | . 5 . 1 2 . Failed 18 | . 6 2 . 6 4 Catastrophic 2 | . . 1 . . 1 Database Lockouts . | . . . . . . Manual 9 | . 4 2 . 3 . Terminals 22 | . 8 2 . 8 4 Fabricators . | . . . . . . Repair Stations . | . . . . . . Recycling Units 3 | . 3 . . . . Scanalyzers . | . . . . . . Garrison Access . | . . . . . . Terminal Hacks 6 | . 3 . 1 2 . Part Schematic 1 | . . . . 1 . Branch Access Points 1 | . 1 . . . . Recall Investigation 1 | . 1 . . . . Hauler Manifests 1 | . . . . 1 . Zone Layout 1 | . 1 . . . . Derelict Proto ID Bank 1 | . . . 1 . . Fabricator Hacks . | . . . . . . Repair Station Hacks . | . . . . . . Recycling Unit Hacks 1 | . 1 . . . . Report Inventory 1 | . 1 . . . . Scanalyzer . | . . . . . . Garrison Access Hacks . | . . . . . . Unauthorized Hacks 1 | . 1 . . . . Terminals . | . . . . . . Fabricators . | . . . . . . Repair Stations . | . . . . . . Recycling Units 1 | . 1 . . . . Tunnel 1 | . 1 . . . . Scanalyzers . | . . . . . . Garrison Access . | . . . . . . Data Cores Recovered . | . . . . . . Used . | . . . . . . Hacking Detections 8 | . 2 1 . 3 2 Full Trace Events 3 | . 1 1 . . 1 Feedback Events . | . . . . . . Feedback Blocked . | . . . . . . Robot Schematics Acquired . | . . . . . . Robots Built . | . . . . . . Authchips . | . . . . . . Time . | . . . . . . Total Robot Build Rating . | . . . . . . Part Schematics Acquired 1 | . . . . 1 . Parts Built . | . . . . . . Authchips . | . . . . . . Time . | . . . . . . Total Part Build Rating . | . . . . . . Parts Repaired . | . . . . . . Time . | . . . . . . Parts Recycled . | . . . . . . Recycled Matter . | . . . . . . Retrieved Matter . | . . . . . . Retrieved Components . | . . . . . . Parts Scanalyzed . | . . . . . . Part Schematics Acquired . | . . . . . . Parts Damaged . | . . . . . . Bothacking | -11 -10 -10 -10 -8 -8 ------------ Run | Yrd Mat Min Sub Mat Sto Used RIF Installer . | . . . . . . Robots Hacked . | . . . . . . Non-combat . | . . . . . . Combat . | . . . . . . Robot Hacks Applied . | . . . . . . Relay Couplers Released . | . . . . . . Fabnet Peak Effective % . | . . . . . . Robots Rewired . | . . . . . . Allies Hacked . | . . . . . . Hacks Repelled . | . . . . . . Allies | -11 -10 -10 -10 -8 -8 -------- Run | Yrd Mat Min Sub Mat Sto Total Allies 2 | . . . . . 2 Largest Group 2 | . . . . . 2 Highest-Rated Group 62 | . . . . . 62 Highest-Rated Ally 31 | . . . . . 31 Total Orders . | . . . . . . Ally Attacks 20 | . . . . . 20 Total Damage 320 | . . . . . 320 Kills 4 | . . . . . 4 Allies Corrupted . | . . . . . . Allies Melted 1 | . . . . . 1 Intel | -11 -10 -10 -10 -8 -8 ------- Run | Yrd Mat Min Sub Mat Sto Robot Analysis Total . | . . . . . . Derelict Logs Recovered 4 | . . 2 2 . . Drone Launches . | . . . . . . Drone Recoveries . | . . . . . . Exploration | -11 -10 -10 -10 -8 -8 ------------- Run | Yrd Mat Min Sub Mat Sto Turns Passed 3859 | 64 469 733 2134 300 159 Spaces Moved 2606 | 43 283 559 1324 234 163 Core 78 | 2 . . . . 76 Treads 287 | . . . 287 . . Legs 1445 | 41 283 559 562 . . Wheels 796 | . . . 475 234 87 Hover . | . . . . . . Flight . | . . . . . . Fastest Speed 50 | 50 120 120 110 80 50 Average Speed 129 | 129 120 120 148 98 67 Slowest Speed 210 | 190 190 120 210 110 200 Overloaded Moves . | . . . . . . Propulsion Burnouts . | . . . . . . Robots Hopped . | . . . . . . Cave-ins Triggered . | . . . . . . Exploration Rate (%) 48 | 4 54 91 71 27 44 Regions Visited 5 Branch Regions 3 Pre-discovered Areas 2 | . 1 . 1 . . Known Exits Taken 3 | . 1 1 . 1 . Unknown Exits Taken 2 | 1 . . 1 . . Scrap Searched 11 | . . 2 9 . . Spaces Dug 3 | . . . 3 . . Terrain Destroyed 193 | . . 53 29 83 28 Melee . | . . . . . . Projectile 3 | . . . 3 . . AOE 190 | . . 53 26 83 28 Terrain Rammed . | . . . . . . Walls Destroyed . | . . . . . . Machines Disabled . | . . . . . . Actions | -11 -10 -10 -10 -8 -8 --------- Run | Yrd Mat Min Sub Mat Sto Total 2887 | 48 346 606 1419 276 192 Wait 34 | . 10 14 5 5 . Move 2601 | 42 282 558 1323 233 163 Hop . | . . . . . . Pick Up 20 | . 7 5 4 3 1 Fast Attach 31 | 6 5 3 10 4 3 Attach 8 | . . . 2 4 2 Detach 3 | . . 1 . 1 1 Swap 10 | . . 4 3 2 1 Drop 24 | . . 7 12 5 . Fire 142 | . 41 10 60 19 12 Melee 4 | . . . . . 4 Ram 5 | . . . . . 5 Kick 5 | . 1 4 . . . Crush . | . . . . . . Escape Stasis . | . . . . . . Rewire . | . . . . . . Trap . | . . . . . . Miscellaneous . | . . . . . . Route ------- -11/Scrapyard -10/Materials -10/Mines (discovered 3 exits: [*Mat x2] / *Sub) -10/Subcaves (discovered 2 exits: *Mat x2) -8/Materials -8/Storage History --------- Turn | Location | Event 8 | -11/Scrapyard | Discovered new exit (range 15) 65 | -11/Scrapyard | Entered Materials 311 | -10/Materials | Build established: Mutant 451 | -10/Materials | Discovered new exit (range 16) 506 | -10/Materials | Identified exit to Mines 534 | -10/Materials | Entered Mines 627 | -10/Mines | Core integrity fell below 50% 699 | -10/Mines | Learned Materials trap positions 709 | -10/Mines | Found a damaged Exp. Sensor Array with a note attached 712 | -10/Mines | Found Prototype Device 712 | -10/Mines | Identified Exp. Sensor Array 745 | -10/Mines | Identified exit to Subcaves 786 | -10/Mines | Discovered new exit (range 13) 791 | -10/Mines | YI-UF0 nonchalantly dropped a Grenade Launcher on the ground 945 | -10/Mines | Discovered new exit (range 10) 1267 | -10/Mines | Entered Subcaves 1269 | -10/Subcaves | Learned location of Zion (-7) 1297 | -10/Subcaves | Shifting Twisted Machinery released Sub. Monowheel 1308 | -10/Subcaves | Shifting Twisted Machinery released Sub. Machine Gun 1326 | -10/Subcaves | A swath of the cavern ceiling suddenly collapsed 1387 | -10/Subcaves | Visited 4L-MR0's lab 1402 | -10/Subcaves | Found Rainbow Chip 1403 | -10/Subcaves | Attached Rainbow Chip, gained temporary slots: Power, Propulsion, Utility, Weapon 1700 | -10/Subcaves | Build established: Skirmisher 2005 | -10/Subcaves | Shifting Twisted Machinery released Sub. Beam Cannon 2033 | -10/Subcaves | Discovered new exit (range 10) 2038 | -10/Subcaves | Shifting Twisted Machinery released Mak. Leg 2392 | -10/Subcaves | A swath of the cavern ceiling suddenly collapsed 2419 | -10/Subcaves | Ambushed by Subdweller buried in earth 2626 | -10/Subcaves | Build established: Derelict-Skirmisher 3399 | -10/Subcaves | Discovered new exit (range 3) 3401 | -10/Subcaves | Entered Materials 3401 | -8/Materials | Evolved 4 slots: Propulsion x1, Utility x3 3402 | -8/Materials | Loaded intel: 16 trap records 3642 | -8/Materials | Lost 3 parts (3w) 3688 | -8/Materials | Discovered new exit (range 15) 3699 | -8/Materials | Identified exit to Storage 3701 | -8/Materials | Entered Storage 3744 | -8/Storage | Met a pair of Derelict thieves 3824 | -8/Storage | Core integrity fell below 50% 3855 | -8/Storage | Core integrity fell below 20% 3860 | -8/Storage | Destroyed by G-47 Trooper with Particle Gun Last Messages --------------- Visual Processing Unit temporarily disabled. Imp. Signal Interpreter temporarily disabled. Slammed into G-50 Soldier. Katana destroyed. Acquired 57 matter. Acquired 34 matter. W-25 Informer sends out distress signal. Acquired 49 matter. Acquired 29 matter. Slammed into K-01 Serf. Rainbow Chip destroyed. System corrupted by crushing effect (+4). Destabilizing: System corrupted (+1). Slammed into K-01 Serf. O-16 Technician: "IFF HANDSHAKE FAILED. SECURING TERMINAL." System corrupted: Substantial component data lost. ALERT: Hostiles spotted, dispatching reinforcements to Terminal S009. C-30 ARC bursts open, deploying its payload. G-50 Soldier unfolds itself. G-47 Trooper unfolds itself. Map ----- +----------------------------------------------------+ | ?????????????????????????????????????????? | | ?????????????????????????????????????????? | | ?????????????????????????????????????????? | | ?????????????????????????????????????????? | | ?????????????????????????????????????????? | | ?????????????????????????????????????????? | | ?????????????????????????????????????????? | | ?????????????????????????????????????????? | | ?????????????????????????????????????????? | | ?????????????????????????????????????????? | | ?????????????????????????????????????????? | | ??????????????????????##?????????????????? | | ????????????????###### #?????????????????? | | ???????????????? #?????????????????? | | ???????????????""" #?????????????????? | | ??????????????#""" #?????????????????? | | ??????????????#""" #?????????????????? | | ??????????????#""" #?????????????????? | | ????#"????????#""" #?????????????????? | | ????#""???????# #?????????????????? | | ??????""??????? #?????????????????? | | ???#??? ???????? ?????????????????#?? | | ##+######+#########+#########+##### #? | | r g k #? | | a g g g gg Y #? | | a g @ g% #? | | #########+#############" "######### ??? | | ""????? #???????????#"G"#??????????????? | | """ ?#T #???????????# " #??????????????? | | """ ###"""#???????????#####??????????????? | | #????????????????????????????????????? | | #????????????????????????????????????? | | ! #????????????????????????????????????? | | #????????????????????????????????????? | | = ????????????????????????????????????? | | ####?????????????????????????????????????? | | ?????????????????????????????????????????? | | ?????????????????????????????????????????? | | ?????????????????????????????????????????? | | ?????????????????????????????????????????? | | ?????????????????????????????????????????? | | ?????????????????????????????????????????? | | ?????????????????????????????????????????? | | | | | | | | | | | | | | | +----------------------------------------------------+ Best States ------------- Heat Dissipation 31 Energy Generation 24 Energy Capacity 250 Matter Stores 300 Matter Capacity 300 Sight Range 21 Robot Scan Range 20 Terrain Scan Density 10 Armor Coverage 150 Evasion (%) 55 Recoil Reduction 1 Item Schematics ----------------- Hacking Suite | -8/Materials | Hacked Robot Schematics ------------------ None Fabricated ------------ Nothing Alien Tech Used ----------------- None Achievements -------------- None Challenges ------------ None Game ------ Seed IonicPoweredKit Manual? 0 Play Time 00:34:03 Cumulative 43.7 hours Start 2024.04.19 @ 15:28:59 End 2024.04.19 @ 16:02:00 Sessions 1 Manual Loads 0 Difficulty Rogue Special Mode None Game No. 33 Rogue 33 Adventurer 0 Explorer 0 Win Type - Total 1 Types 1/0/0/0/0/0/0/0/0 Lore% 28 Gallery% 44 Achievement% 33 Wizard Run 0 Options --------- Layout 1 ASCII 0 Keyboard 1 Movement Numpad Keybinds 0 Fullscreen 1 Font 32/SmallcapsGlow Map View 77x35 Zoom Use 0% Tactical HUD 0 Map Filters NONE Filters NONE Steam 1 RUN: d82f8da4-3809-4c45-97af-8d263a4aea7f